bitfinex-derivatives/quotes_ETHF0:USTF0_20251013
["timestamp","ask_amount","ask_price","bid_price","bid_amount"]
[1760379302515,0.42731,4208.6,4208.5,0.4489]
[1760379302713,3.46116625,4208.6,4208.5,0.1269]
[1760379302916,3.4638039,4208.6,4208.5,0.1269]
[1760379303316,3.4638039,4208.6,4208.5,0.4489]
[1760379303717,3.4638039,4208.6,4208.5,0.1269]
[1760379304223,4.1047839,4208.6,4208.0,0.1269]
[1760379304424,0.42746,4207.1,4207.0,0.45091029]
[1760379304728,3.47214191,4207.1,4207.0,0.45091029]
[1760379306020,3.04468191,4207.1,4207.0,0.45091029]
[1760379306431,0.4274,4207.7,4207.6,0.322]
[1760379307124,3.46503333,4207.7,4207.6,0.322]
[1760379307621,3.46503333,4207.7,4207.5,0.1269]
[1760379307821,0.42746,4207.1,4207.0,0.45091029]
[1760379308330,3.56747357,4207.1,4207.0,0.45091029]
[1760379309326,3.56747357,4207.1,4207.0,0.00201029]
[1760379309724,0.42749,4206.8,4206.6,0.322]
[1760379310029,0.42746,4207.1,4207.0,0.1269]
[1760379310230,0.42751,4206.6,4206.5,0.4489]
[1760379310729,3.50022011,4206.6,4206.5,0.45176789]
[1760379312735,3.07271011,4206.6,4206.5,0.45176789]
[1760379312936,0.85371689,4208.2,4208.0,0.1269]
[1760379313232,3.12131054,4208.1,4208.0,0.1269]
[1760379313535,3.12131054,4208.1,4208.0,0.4489]
[1760379314037,0.00263765,4208.6,4208.5,0.1269]
[1760379314238,0.00263765,4208.6,4208.5,0.4489]
[1760379314535,3.1000456,4208.6,4208.5,0.4489]
[1760379316831,0.00263765,4208.6,4208.5,0.4489]
[1760379317629,3.15998738,4208.6,4208.5,0.4489]
[1760379317839,0.42736,4208.1,4208.0,0.4489]
[1760379318138,3.53446987,4208.1,4208.0,0.4489]
[1760379319129,0.42741,4207.6,4207.5,0.1269]
[1760379319335,0.42741,4207.6,4207.5,0.4489]
[1760379319526,3.51309081,4207.6,4207.5,0.4489]
[1760379321331,3.08568081,4207.6,4207.5,0.4489]
[1760379321637,3.10025437,4208.1,4207.5,0.4489]
[1760379322136,1.31438,4208.2,4207.5,0.4489]
[1760379322436,0.4274,4207.7,4207.5,0.4489]
[1760379322732,4.2255325,4207.6,4207.1,0.338]
[1760379323036,0.42745,4207.2,4207.1,0.338]
[1760379323333,3.5844325,4207.2,4207.1,0.338]
[1760379324034,3.1569825,4207.2,4207.1,0.338]
[1760379324239,0.85371689,4208.2,4207.0,0.1269]
[1760379324240,0.85371689,4208.3,4208.0,0.1262]
[1760379324643,3.05264732,4208.1,4208.0,0.4642]
[1760379324840,3.47999732,4208.2,4208.0,0.4642]
[1760379324841,3.05264732,4208.2,4208.0,0.4642]
[1760379325037,0.42734,4208.3,4208.1,0.338]
[1760379325239,0.42736,4208.1,4208.0,0.1262]
[1760379325639,3.15964429,4208.1,4208.0,0.1262]
[1760379325940,0.42734,4208.3,4208.1,0.338]
[1760379326242,3.58688689,4208.2,4208.1,0.338]
[1760379326741,0.42735,4208.2,4208.1,0.338]
[1760379328332,1.0684,4208.1,4207.5,0.1262]
[1760379328540,0.42747,4207.0,4206.2,0.82174623]
[1760379328841,0.4275,4206.7,4206.0,0.1262]
[1760379329043,0.4275,4206.7,4206.6,0.338]
[1760379329541,3.56441694,4206.7,4206.6,0.338]
[1760379330844,0.85371689,4207.6,4207.0,0.1262]
[1760379331041,0.42745,4207.2,4207.1,0.338]
[1760379331341,3.08183268,4207.2,4207.1,0.338]
[1760379331640,0.4275,4206.8,4206.6,0.338]
[1760379331846,0.4275,4206.7,4206.6,0.338]
[1760379332041,3.56636575,4206.7,4206.6,0.338]
[1760379332948,3.56636575,4206.7,4206.0,0.1262]
[1760379332949,3.56636575,4206.7,4206.1,0.338]
[1760379333139,3.56636575,4206.7,4206.5,0.00286789]
[1760379334047,3.56636575,4206.7,4206.6,0.338]
[1760379335240,1.06852,4207.7,4206.6,0.338]
[1760379335241,0.85371689,4207.7,4206.6,0.338]
[1760379335443,0.4274,4207.7,4207.6,0.338]
[1760379335745,0.4274,4207.7,4207.5,0.1262]
[1760379335746,0.246,4208.1,4208.0,0.4642]
[1760379335942,2.16522829,4208.3,4208.0,0.4642]
[1760379336246,3.04124252,4208.1,4208.0,0.4642]
[1760379336446,3.04124252,4208.2,4208.0,0.4642]
[1760379336646,3.13486725,4208.1,4208.0,0.4642]
[1760379336852,3.56222725,4208.1,4208.0,0.4642]
[1760379337153,0.42736,4208.1,4208.0,0.4642]
[1760379337345,3.13486725,4208.1,4208.0,0.4642]
[1760379337651,0.42994765,4208.6,4208.5,0.4642]
[1760379337847,0.00263765,4208.6,4208.5,0.4642]
[1760379338143,3.09862181,4208.6,4208.5,0.4642]
[1760379339346,0.42736,4208.1,4208.0,0.1262]
[1760379339550,0.42741,4207.6,4207.5,0.4642]
[1760379340650,3.49723524,4207.6,4207.5,0.4642]
[1760379341750,0.85086829,4208.4,4207.5,0.1262]
[1760379341955,0.42736,4208.1,4208.0,0.1262]
[1760379342154,3.58165813,4208.1,4208.0,0.1262]
[1760379342355,0.42736,4208.1,4208.0,0.1262]
[1760379342551,0.42734,4208.3,4208.0,0.1262]
[1760379342756,0.42735,4208.2,4208.1,0.338]
[1760379343350,0.42994765,4208.6,4208.5,0.1262]
[1760379343544,0.42994765,4208.6,4208.5,0.4642]
[1760379343947,0.00263765,4208.6,4208.5,0.4642]
[1760379345152,0.03263765,4208.6,4208.5,0.4642]
[1760379347661,3.17826654,4208.6,4208.5,0.4642]
[1760379349063,3.60557654,4208.6,4208.5,0.4642]
[1760379350963,3.17826654,4208.6,4208.5,0.4642]
[1760379351466,0.03263765,4208.6,4208.5,0.4642]
[1760379351763,0.03263765,4208.6,4208.5,0.89152]
[1760379351952,0.03263765,4208.6,4208.5,0.4642]
[1760379353060,3.48984802,4208.6,4208.5,0.1262]
[1760379353461,3.48984802,4208.6,4208.5,0.4336]
[1760379353965,3.06253802,4208.6,4208.5,0.4336]
[1760379354760,0.03263765,4208.6,4208.5,0.4336]
[1760379354965,0.03263765,4208.6,4208.5,0.86092]
[1760379355759,1.0679,4210.1,4208.9,0.42727]
[1760379355964,1.06794,4209.9,4209.6,0.3074]
[1760379356268,3.49787589,4209.6,4209.5,0.133]
[1760379356459,0.4272,4209.6,4209.5,0.133]
[1760379356759,4.13870589,4209.6,4209.0,0.133]
[1760379356963,3.50003526,4209.6,4209.5,0.00286016]
[1760379358267,3.50003526,4209.6,4209.5,0.31026016]
[1760379358767,3.07283526,4209.6,4209.5,0.44326016]
[1760379358961,3.50003526,4209.6,4209.5,0.44326016]
[1760379359756,3.07283526,4209.6,4209.5,0.44326016]
[1760379360366,0.00215937,4209.6,4209.5,0.44326016]
[1760379360570,0.00215937,4209.6,4209.5,0.87047016]
[1760379360867,0.22,4211.3,4211.1,0.3074]
[1760379361066,0.22,4211.3,4211.0,0.133]
[1760379361267,3.1392045,4211.2,4211.1,0.3074]
[1760379361461,3.1392045,4211.2,4210.4,0.3074]
[1760379361662,0.42714,4210.2,4210.1,0.3074]
[1760379362071,3.02956722,4210.2,4210.1,0.3074]
[1760379362379,3.45670722,4210.3,4210.1,0.3074]
[1760379362670,0.42715,4210.2,4210.1,0.3074]
[1760379363170,3.56186664,4210.2,4210.1,0.3074]
[1760379365173,1.06789,4210.1,4209.5,0.13586016]
[1760379365471,0.42719,4209.7,4209.5,0.44326016]
[1760379365671,0.42719,4209.7,4209.6,0.3074]
[1760379365870,4.35135559,4210.0,4209.5,0.13586016]
[1760379365871,3.15130683,4209.6,4209.5,0.13586016]
[1760379366171,0.245,4210.0,4209.5,0.13586016]
[1760379366172,3.15130683,4209.7,4209.5,0.13586016]
[1760379366471,0.245,4210.5,4210.0,0.133]
[1760379366665,0.245,4210.5,4210.1,0.3074]
[1760379366872,0.42713,4210.3,4210.1,0.3074]
[1760379367062,3.1152397,4210.4,4210.1,0.3074]
[1760379367266,0.4271,4210.7,4210.5,0.133]
[1760379367475,0.00177631,4211.2,4210.6,0.3074]
[1760379367667,0.00177631,4211.2,4211.1,0.3074]
[1760379372076,3.02368768,4211.2,4211.1,0.3074]
[1760379372374,0.00177631,4211.2,4211.1,0.3074]
[1760379378380,0.22,4211.3,4211.2,0.73444]
[1760379379073,0.22,4211.3,4211.2,0.97944]
[1760379379377,0.22241689,4211.3,4211.2,0.97944]
[1760379380876,0.22241689,4211.3,4211.2,0.3074]
[1760379382888,0.22241689,4211.3,4211.2,0.5524]
[1760379383077,3.34075284,4211.3,4211.0,0.4636]
[1760379383274,3.34075284,4211.3,4211.0,0.133]
[1760379383583,0.22241689,4211.3,4211.1,0.42705]
[1760379383772,0.22241689,4211.3,4211.2,0.3306]
[1760379384383,0.42704,4211.2,4211.0,0.133]
[1760379384587,0.42708,4210.8,4210.7,0.3306]
[1760379384777,3.05290938,4211.1,4210.2,0.3306]
[1760379385084,0.4271,4210.7,4210.1,0.75775]
[1760379385278,0.42709,4210.8,4210.6,0.3306]
[1760379385479,3.09111773,4210.6,4210.5,0.4636]
[1760379385679,3.09111773,4210.7,4210.5,0.56011]
[1760379385880,0.22241689,4211.3,4210.6,0.3306]
[1760379386082,3.11948949,4211.2,4210.6,0.3306]
[1760379386275,0.42707,4211.0,4210.6,0.3306]
[1760379386477,0.42709,4210.8,4210.5,0.4636]
[1760379386681,3.11948949,4210.9,4210.5,0.4636]
[1760379386887,3.11948949,4210.7,4210.5,0.4636]
[1760379387287,0.42708,4210.8,4210.0,0.133]
[1760379387288,0.42711,4210.6,4210.0,0.133]
[1760379387480,3.04719207,4210.6,4210.1,0.42715]
[1760379387686,3.04719207,4210.6,4210.2,0.3306]
[1760379387886,1.06764,4211.1,4209.7,0.3306]
[1760379388086,0.42715,4210.2,4209.7,0.3306]
[1760379388294,0.42714,4210.3,4209.7,0.3306]
[1760379388489,0.42716,4210.0,4209.5,0.13586016]
[1760379388796,3.14416397,4209.9,4209.5,0.13586016]
[1760379389090,3.14416397,4209.9,4209.8,0.3306]
[1760379391085,3.14416397,4209.9,4209.5,0.13586016]
[1760379391086,3.15755493,4210.0,4209.6,0.3306]
[1760379391590,3.15755493,4210.2,4209.6,0.3306]
[1760379391784,0.42718,4209.8,4209.5,0.13586016]
[1760379392092,3.54639743,4209.7,4209.6,0.3306]
[1760379392292,3.54639743,4209.7,4209.5,0.13586016]
[1760379392486,0.42719,4209.7,4209.5,0.13586016]
[1760379392687,0.42716,4210.0,4209.6,0.3306]
[1760379392984,0.42718,4209.8,4209.6,0.3306]
[1760379393188,0.42718,4209.8,4209.5,0.13586016]
[1760379393390,3.10712901,4209.7,4209.6,0.3306]
[1760379394287,3.13924225,4209.8,4209.6,0.3306]
[1760379394490,0.42718,4209.9,4209.6,0.3306]
[1760379394694,0.245,4210.3,4210.0,0.1291]
[1760379394986,0.42715,4210.1,4210.0,0.1291]
[1760379395191,0.42715,4210.1,4210.0,0.4597]
[1760379395388,3.56507478,4210.1,4210.0,0.4597]
[1760379396489,3.13792478,4210.1,4210.0,0.4597]
[1760379396793,3.06767157,4210.2,4210.0,0.1291]
[1760379397089,0.245,4211.1,4210.1,0.3306]
[1760379397289,0.245,4211.1,4211.0,0.4597]
[1760379397290,0.67205,4211.1,4211.0,0.4597]
[1760379397491,3.07577583,4210.8,4210.0,0.1291]
[1760379397688,0.42714,4210.2,4210.0,0.4597]
[1760379397887,0.42719,4209.8,4209.5,0.13586016]
[1760379398086,0.42717,4210.0,4209.6,0.3306]
[1760379398293,3.13947014,4209.7,4209.6,0.3306]
[1760379398593,0.42719,4209.8,4209.6,0.3306]
[1760379398784,0.42717,4210.0,4209.6,0.3306]
[1760379398983,3.09815925,4209.7,4209.6,0.3306]
[1760379399183,3.09815925,4209.8,4209.6,0.3306]
[1760379399398,0.245,4210.5,4209.6,0.3306]
[1760379399688,0.42715,4210.2,4210.0,0.1291]
[1760379399896,0.42715,4210.2,4210.1,0.3306]
[1760379400286,3.49449282,4210.2,4210.1,0.3306]
[1760379401095,0.42718,4209.9,4209.6,0.3306]
[1760379401401,0.4272,4209.7,4209.5,0.00286016]
[1760379401689,0.4272,4209.7,4209.6,0.3306]
[1760379402087,0.4272,4209.7,4209.5,0.13196016]
[1760379402088,3.10068157,4209.6,4209.5,0.13196016]
[1760379402283,3.10068157,4209.7,4209.5,0.13196016]
[1760379402488,0.4272,4209.7,4209.5,0.46256016]
[1760379402794,3.52788157,4209.7,4209.5,0.13196016]
[1760379403095,0.42718,4209.9,4209.6,0.3306]
[1760379403495,3.50198389,4209.8,4209.5,0.13196016]
[1760379403793,1.91859829,4210.8,4209.5,0.13196016]
[1760379403794,0.42713,4210.3,4210.0,0.1291]
[1760379404194,0.42715,4210.2,4210.1,0.3306]
[1760379404588,3.45719146,4210.2,4210.1,0.3306]
[1760379404789,3.03004146,4210.2,4209.5,0.46256016]
[1760379405291,0.245,4210.2,4209.6,0.3306]
[1760379405597,3.09549996,4210.1,4210.0,0.1291]
[1760379405800,3.09549996,4210.1,4210.0,0.4597]
[1760379406097,0.42712,4210.4,4210.0,0.4597]
[1760379406098,3.53034235,4210.4,4210.0,0.1291]
[1760379406394,3.10322235,4210.3,4210.1,0.3306]
[1760379406589,0.67211,4210.6,4210.5,0.1291]
[1760379406788,0.67211,4210.6,4210.5,0.4597]
[1760379407004,3.69256735,4210.6,4210.5,0.4597]
[1760379407297,3.02045735,4210.6,4210.5,0.4597]
[1760379407496,0.42704,4211.2,4211.1,0.3306]
[1760379407791,3.02045735,4211.2,4211.1,0.3306]
[1760379408587,3.02045735,4211.2,4211.0,0.1291]
[1760379408799,0.42707,4210.9,4210.7,0.31]
[1760379409093,0.4271,4210.7,4210.5,0.1291]
[1760379409489,3.14019966,4210.6,4210.5,0.4391]
[1760379409886,3.14019966,4210.7,4210.5,0.1291]
[1760379410090,0.42707,4210.9,4210.6,0.31]
[1760379410294,3.1435628,4210.8,4210.6,0.31]
[1760379410495,0.42707,4210.9,4210.6,0.31]
[1760379410796,3.1435628,4210.8,4210.5,0.1291]
[1760379410989,3.5706428,4210.8,4210.5,0.1291]
[1760379411189,3.1435628,4210.8,4210.5,0.1291]
[1760379411384,0.42707,4210.9,4210.5,0.1291]
[1760379411687,0.42704,4211.2,4211.1,0.31]
[1760379412083,3.52140274,4211.2,4211.1,0.31]
[1760379413394,3.09436274,4211.2,4211.1,0.31]
[1760379414689,0.42709,4210.8,4210.6,0.3139]
[1760379414999,3.15673863,4210.7,4210.6,0.3139]
[1760379415894,0.42707,4211.0,4210.6,0.3139]
[1760379415895,3.15673863,4210.9,4210.6,0.3139]
[1760379416096,0.42707,4211.0,4210.6,0.3139]
[1760379416294,3.04523161,4210.9,4210.5,0.1291]
[1760379416485,3.47230161,4210.9,4210.5,0.1291]
[1760379416888,0.42707,4210.9,4210.5,0.1291]
[1760379417089,3.03971472,4210.8,4210.5,0.1291]
[1760379417292,3.03971472,4210.8,4210.6,0.3139]
[1760379417697,3.46678472,4211.0,4210.6,0.3139]
[1760379417893,0.42708,4210.9,4210.5,0.1291]
[1760379418197,0.42709,4210.8,4210.6,0.3139]
[1760379418392,3.10514759,4210.9,4210.5,0.1291]
[1760379418589,3.10514759,4210.7,4210.6,0.3139]
[1760379418790,3.10514759,4210.8,4210.6,0.3139]
[1760379418986,0.42708,4210.8,4210.6,0.3139]
[1760379419197,0.4271,4210.7,4210.6,0.3139]
[1760379419690,3.5212495,4210.7,4210.6,0.3139]
[1760379420494,1.06757,4211.4,4210.6,0.3139]
[1760379420690,2.12650232,4211.9,4211.1,0.3139]
[1760379421000,0.427,4211.6,4211.2,0.3139]
[1760379421197,0.42702,4211.4,4211.2,0.3139]
[1760379421698,0.42701,4211.6,4211.2,0.3139]
[1760379421997,0.42701,4211.5,4211.2,0.3139]
[1760379422196,0.427,4211.6,4211.2,0.3139]
[1760379422403,1.06746,4211.9,4211.2,0.3139]
[1760379422801,0.64944689,4211.3,4211.2,0.3139]
[1760379422997,1.06766,4211.0,4210.5,0.1291]
[1760379423301,0.4271,4210.6,4210.5,0.1291]
[1760379423698,3.5664049,4210.6,4210.5,0.1291]
[1760379424089,3.5664049,4210.6,4210.5,0.443]
[1760379425106,3.1393049,4210.6,4210.1,0.3139]
[1760379425300,0.42713,4210.3,4210.0,0.443]
[1760379425494,0.42715,4210.2,4210.1,0.3139]
[1760379425699,3.47621525,4210.2,4210.1,0.3139]
[1760379426000,0.42715,4210.2,4210.1,0.3139]
[1760379427198,3.09045797,4210.2,4210.0,0.1303]
[1760379427404,0.42708,4210.8,4210.5,0.1303]
[1760379427701,0.42708,4210.8,4210.6,0.3139]
[1760379427702,0.42709,4210.7,4210.6,0.3139]
[1760379428096,3.44730838,4210.7,4210.6,0.3139]
[1760379428695,0.42715,4210.2,4210.1,0.3139]
[1760379429095,3.0988649,4210.2,4210.1,0.3139]
[1760379429495,1.06776,4210.7,4210.0,0.1303]
[1760379429496,0.42715,4210.1,4210.0,0.1303]
[1760379429696,0.42715,4210.1,4210.0,0.4442]
[1760379429896,3.5260149,4210.1,4210.0,0.4442]
[1760379430501,0.42719,4209.8,4209.5,0.13196016]
[1760379430709,0.4272,4209.7,4209.6,0.3139]
[1760379431004,3.14931701,4209.7,4209.6,0.3139]
[1760379431197,3.03613863,4210.4,4209.6,0.3139]
[1760379431394,1.06781,4210.5,4209.6,0.3139]
[1760379431395,1.06787,4210.2,4209.6,0.3139]
[1760379431598,0.42719,4209.7,4209.6,0.3139]
[1760379434302,0.4272,4209.6,4209.5,0.13196016]
[1760379434510,0.4272,4209.6,4209.5,0.44586016]
[1760379434808,0.4272,4209.6,4209.5,0.00286016]
[1760379434809,3.55384683,4209.6,4209.5,0.00286016]
[1760379435007,3.55384683,4209.6,4209.5,0.44706016]
[1760379435406,0.85086829,4210.4,4209.6,0.3139]
[1760379435706,0.42719,4209.8,4209.6,0.3139]
[1760379435904,0.4272,4209.7,4209.6,0.3139]
[1760379436311,0.4272,4209.6,4209.5,0.13316016]
[1760379436609,3.51171737,4209.6,4209.5,0.00286016]
[1760379438000,3.75571737,4209.6,4209.5,0.00286016]
[1760379440808,3.75571737,4209.6,4209.5,0.44706016]
[1760379441204,1.06785,4210.3,4209.5,0.44706016]
[1760379441405,1.06775,4210.7,4210.5,0.1303]
[1760379441609,0.4271,4210.6,4210.5,0.1303]
[1760379441906,3.80327011,4210.6,4210.5,0.4442]
[1760379442107,3.13217011,4210.7,4210.6,0.3139]
[1760379442302,0.244,4210.8,4210.5,0.1303]
[1760379442504,0.42715,4210.2,4210.0,0.4537]
[1760379442710,0.42715,4210.2,4210.1,0.3234]
[1760379443006,3.06870717,4210.1,4210.0,0.1303]
[1760379443212,3.51410982,4210.2,4210.0,0.1303]
[1760379443412,3.51410982,4210.2,4209.8,0.3234]
[1760379443413,0.42715,4210.2,4209.5,0.13316016]
[1760379443613,1.06775,4210.7,4209.5,0.13316016]
[1760379443614,0.4272,4209.7,4209.5,0.13316016]
[1760379444107,0.4272,4209.7,4209.5,0.45656016]
[1760379444310,3.04156043,4209.6,4209.5,0.45656016]
[1760379447115,3.47567133,4209.7,4209.5,0.45656016]
[1760379447305,3.04847133,4209.7,4209.6,0.3234]
[1760379447505,0.4272,4209.7,4209.6,0.3234]
[1760379447705,3.47567133,4209.7,4209.6,0.3234]
[1760379447903,3.47567133,4209.7,4209.5,0.13316016]
[1760379448210,0.4272,4209.6,4209.5,0.45656016]
[1760379448411,3.46779256,4209.6,4209.5,0.45656016]
[1760379448712,0.4272,4209.6,4209.5,0.45656016]
[1760379448909,3.46779256,4209.6,4209.5,0.00286016]
[1760379449706,3.46779256,4209.6,4209.5,0.45196016]
[1760379450106,3.71179256,4209.6,4209.5,0.45196016]
[1760379450308,3.71179256,4209.6,4209.5,0.00286016]
[1760379450909,3.71179256,4209.6,4209.5,0.45196016]
[1760379451109,3.71179256,4209.6,4209.5,0.12856016]
[1760379451313,3.71179256,4209.6,4209.5,0.00286016]
[1760379461212,0.42734,4208.3,4208.2,0.82174623]
[1760379461417,0.67134,4208.3,4208.2,0.3234]
[1760379461616,3.79238364,4208.3,4208.2,0.3234]
[1760379462418,3.1232026,4208.3,4208.2,0.32636532]
[1760379462719,3.1232026,4208.3,4208.2,0.53946532]
[1760379462916,3.1232026,4208.3,4208.2,0.75346532]
[1760379463518,3.1232026,4208.3,4208.2,0.53946532]
[1760379463718,3.1232026,4208.3,4208.2,0.32636532]
[1760379463913,3.1232026,4208.3,4208.2,0.53946532]
[1760379464114,3.1232026,4208.3,4208.2,0.75346532]
[1760379466626,0.00215896,4208.3,4208.2,1.18081532]
[1760379469620,0.00215896,4208.3,4208.2,0.75346532]
[1760379469822,0.42949896,4208.3,4208.2,0.32636532]
[1760379470026,0.00215896,4208.3,4208.2,0.54346532]
[1760379470716,0.00215896,4208.3,4208.2,0.97081532]
[1760379470922,0.00215896,4208.3,4208.2,1.18251532]
[1760379472725,0.85086829,4210.6,4209.9,0.4372]
[1760379472927,0.42705,4211.1,4211.0,0.1275]
[1760379473130,0.22,4211.3,4211.1,0.3104]
[1760379473424,3.10222711,4211.2,4211.1,0.73745]
[1760379473627,0.00245475,4211.2,4211.1,0.73745]
[1760379474728,3.11022255,4211.2,4211.1,0.3104]
[1760379475133,0.42705,4211.1,4211.0,0.4379]
[1760379475524,3.52458319,4211.1,4211.0,0.4379]
[1760379476131,3.52458319,4211.1,4211.0,0.1275]
[1760379477129,3.52458319,4211.1,4211.0,0.4379]
[1760379478927,3.52458319,4211.1,4211.0,0.1275]
[1760379479129,3.52458319,4211.1,4211.0,0.4379]
[1760379480035,0.4271,4210.7,4210.6,0.3104]
[1760379480420,3.58050939,4210.7,4210.6,0.3104]
[1760379482719,3.58050939,4210.7,4210.5,0.1275]
[1760379482919,1.06776,4210.6,4209.5,0.1275]
[1760379483128,0.42719,4209.7,4209.5,0.1275]
[1760379483325,0.244,4209.6,4209.5,0.4379]
[1760379483527,3.3062613,4209.6,4209.5,0.4379]
[1760379483726,3.3062613,4209.6,4209.5,0.1275]
[1760379483927,0.42725,4209.1,4209.0,0.4379]
[1760379484127,0.42725,4209.1,4209.0,0.1275]
[1760379484328,0.42725,4209.1,4209.0,0.4379]
[1760379484329,3.0492418,4209.1,4209.0,0.4379]
[1760379484536,0.85086829,4210.5,4209.0,0.4379]
[1760379484828,0.4272,4209.7,4209.6,0.3104]
[1760379485229,3.4764418,4209.7,4209.6,0.3104]
[1760379488036,3.0492418,4209.7,4209.6,0.3104]
[1760379488237,3.0492418,4209.7,4209.6,0.7476]
[1760379488430,3.04012973,4209.8,4209.7,0.3104]
[1760379488631,0.42717,4210.0,4209.7,0.5319]
[1760379488941,3.04012973,4209.8,4209.6,0.3104]
[1760379489338,0.42717,4210.0,4209.6,0.3104]
[1760379489539,0.42715,4210.2,4210.0,0.1275]
[1760379489837,0.42715,4210.2,4210.1,0.3104]
[1760379490039,3.14524502,4210.3,4210.1,0.3104]
[1760379490240,3.14524502,4210.2,4210.1,0.7476]
[1760379490536,0.00245475,4211.2,4211.1,0.3104]
[1760379490927,3.02131568,4211.2,4211.1,0.3104]
[1760379491629,3.02131568,4211.2,4211.1,0.73745]
[1760379491832,0.00245475,4211.2,4211.1,0.73745]
[1760379493140,0.00245475,4211.2,4211.1,0.3104]
[1760379493141,0.42949475,4211.2,4211.1,0.3104]
[1760379493332,3.55942566,4211.2,4211.0,0.1275]
[1760379493843,0.4271,4210.6,4210.5,0.4379]
[1760379494233,3.55703091,4210.6,4210.5,0.4379]
[1760379495538,3.12993091,4210.6,4210.5,0.4379]
[1760379495937,0.4271,4210.6,4210.5,0.4379]
[1760379496338,3.49423354,4210.6,4210.5,0.4379]
[1760379499049,3.06713354,4210.6,4210.5,0.4379]
[1760379499440,0.4271,4210.7,4210.6,0.3104]
[1760379499739,3.48127092,4210.7,4210.6,0.3104]
[1760379499954,3.48127092,4210.7,4210.5,0.4379]
[1760379500239,0.244,4210.6,4210.5,0.1275]
[1760379500448,0.244,4210.6,4210.5,0.4379]
[1760379500640,3.27217662,4210.6,4210.5,0.4379]
[1760379500845,3.02817662,4210.6,4210.5,0.4379]
[1760379501348,0.42949475,4211.2,4211.1,0.3104]
[1760379501547,0.00245475,4211.2,4211.1,0.3104]
[1760379501743,3.13998541,4211.2,4211.1,0.3104]
[1760379501942,0.00245475,4211.2,4211.1,0.3104]
[1760379502646,0.85086829,4212.7,4211.7,0.42698]
[1760379502840,0.4269,4212.6,4212.5,0.461]
[1760379503341,0.42699,4211.7,4211.5,0.1329]
[1760379503548,0.42699,4211.7,4211.6,0.3281]
[1760379503851,3.57807432,4211.7,4211.6,0.00192123]
[1760379505053,3.82207432,4211.7,4211.6,0.33002123]
[1760379505935,3.82207432,4211.7,4211.6,0.00192123]
[1760379508950,3.57807432,4211.7,4211.6,0.00192123]
[1760379509344,3.82207432,4211.7,4211.6,0.00192123]
[1760379513653,0.42708,4210.8,4210.7,0.32077878]
[1760379513852,0.4271,4210.6,4210.5,0.1329]
[1760379514153,3.45991118,4210.6,4210.5,0.1329]
[1760379514553,3.45991118,4210.6,4210.5,0.13563143]
[1760379514956,0.85001486,4211.8,4210.5,0.13563143]
[1760379515144,0.42885234,4211.7,4211.5,0.1329]
[1760379515349,3.14171847,4211.6,4211.5,0.1329]
[1760379515650,3.14171847,4211.6,4211.5,0.461]
[1760379517649,0.42884234,4211.7,4211.5,0.55991]
[1760379517650,0.00185234,4211.7,4211.5,0.55991]
[1760379517957,0.00185234,4211.7,4211.6,0.3281]
[1760379519252,0.022,4212.8,4212.6,0.3281]
[1760379519455,0.022,4212.8,4212.6,0.4269]
[1760379519662,0.022,4212.8,4212.7,0.3281]
[1760379520153,3.04931634,4212.8,4212.5,0.1329]
[1760379520361,1.06726,4212.6,4212.0,0.1329]
[1760379520555,0.42694,4212.2,4212.0,0.461]
[1760379520851,0.42694,4212.2,4212.0,0.1329]
[1760379520852,3.04264788,4212.1,4212.0,0.1329]
[1760379521152,3.04264788,4212.1,4211.0,0.1329]
[1760379521153,0.42699,4211.7,4211.0,0.1329]
[1760379521347,4.11003788,4212.1,4211.0,0.1329]
[1760379521348,3.46959788,4212.1,4212.0,0.461]
[1760379521550,0.42695,4212.1,4212.0,0.461]
[1760379521748,3.45444717,4212.1,4212.0,0.461]
[1760379522256,3.45444717,4212.1,4211.6,0.3281]
[1760379522257,0.42699,4211.7,4211.6,0.3281]
[1760379522560,3.52308328,4211.7,4211.6,0.3281]
[1760379522749,3.52308328,4211.7,4211.2,0.3281]
[1760379523054,3.09609328,4211.7,4211.6,0.3281]
[1760379523454,3.09773931,4211.8,4211.6,0.3281]
[1760379523656,3.52467931,4212.2,4211.6,0.3281]
[1760379523950,3.09773931,4212.4,4212.1,0.3281]
[1760379524158,0.42694,4212.3,4212.1,0.3281]
[1760379524453,3.09773931,4212.2,4212.1,0.3281]
[1760379524658,0.42694,4212.3,4212.1,0.3281]
[1760379524952,3.06230034,4212.2,4212.1,0.3281]
[1760379526159,3.30530034,4212.2,4211.6,0.3281]
[1760379526455,0.42698,4211.9,4211.6,0.3281]
[1760379526660,0.42698,4211.8,4211.6,0.3281]
[1760379526963,3.55182059,4211.8,4211.6,0.3281]
[1760379527164,3.12484059,4211.8,4211.6,0.3281]
[1760379527656,0.02388925,4212.8,4212.5,0.1329]
[1760379527962,3.51893723,4212.7,4212.6,0.3281]
[1760379529766,3.51893723,4212.7,4212.5,0.1329]
[1760379530061,0.42694,4212.2,4212.1,0.3299]
[1760379530257,0.66993,4212.4,4212.0,0.1329]
[1760379530464,3.11425424,4212.2,4212.1,0.3299]
[1760379530660,3.54118424,4212.3,4212.1,0.3299]
[1760379530863,1.06741,4212.0,4211.6,0.3299]
[1760379531164,0.42708,4210.8,4210.6,0.3299]
[1760379531364,0.85079944,4211.7,4210.6,0.3299]
[1760379531566,0.85079944,4211.7,4209.7,0.83182208]
[1760379531567,3.09332634,4210.7,4209.8,0.3299]
[1760379531764,0.42722,4209.5,4209.0,0.96592208]
[1760379531961,1.0679,4210.1,4209.0,0.1341]
[1760379531962,0.6702,4209.7,4209.0,0.1341]
[1760379532270,2.75222634,4209.6,4209.1,0.9]
[1760379532568,0.1244,4210.5,4210.0,0.42716]
[1760379532752,0.1244,4210.5,4209.1,2.21114]
[1760379532753,0.1244,4210.0,4209.7,1.25943943]
[1760379532960,0.3324,4209.9,4209.8,0.42718]
[1760379533659,0.1244,4210.0,4209.5,0.83224943]
[1760379533970,0.3324,4209.2,4209.1,0.00180814]